bitfinex/quotes_ETHUSD_20250808
["timestamp","ask_amount","ask_price","bid_price","bid_amount"]
[1754612732721,7.04699415,3901.2,3901.1,0.54438857]
[1754612733222,4.94299415,3901.2,3901.1,1.09438857]
[1754612733385,0.128,3901.2,3901.1,1.09438857]
[1754612733588,0.76897029,3901.4,3901.2,0.55]
[1754612733790,0.76899415,3901.2,3901.1,1e-08]
[1754612734024,4.179,3901.2,3901.1,1e-08]
[1754612734329,4.94799415,3901.2,3901.1,1e-08]
[1754612735125,3.69863762,3901.2,3901.1,1e-08]
[1754612735419,4.46763177,3901.2,3901.1,1e-08]
[1754612735725,4.95669225,3901.2,3901.1,1e-08]
[1754612735902,4.94799415,3901.2,3901.1,1e-08]
[1754612736125,4.75269606,3901.2,3901.1,1e-08]
[1754612737262,1.40704207,3901.2,3901.1,1e-08]
[1754612737920,1.41574497,3901.2,3901.1,1e-08]
[1754612738159,4.18,3901.2,3901.1,1e-08]
[1754612738322,5.2132,3901.2,3901.1,1e-08]
[1754612738919,5.2219029,3901.2,3901.1,1e-08]
[1754612739219,4.177,3901.2,3901.1,1e-08]
[1754612739862,4.175,3901.4,3901.1,1e-08]
[1754612740046,4.177,3901.6,3901.1,1e-08]
[1754612740259,4.177,3902.1,3901.1,1e-08]
[1754612740426,0.4177,3902.1,3901.1,1e-08]
[1754612740965,4.176,3902.3,3901.1,1e-08]
[1754612741270,6.152,3903.1,3901.1,1e-08]
[1754612741271,0.5868253,3902.2,3901.1,1e-08]
[1754612741434,6.152,3903.1,3901.1,1e-08]
[1754612741621,4.80915946,3903.0,3901.1,1e-08]
[1754612742248,4.175,3903.0,3901.1,1e-08]
[1754612743129,4.172,3903.3,3901.1,1e-08]
[1754612743328,0.4172,3903.2,3901.1,1e-08]
[1754612743766,0.4172,3903.2,3901.4,0.55]
[1754612744079,0.4172,3903.2,3901.6,0.55]
[1754612744274,0.4172,3903.2,3901.7,0.54464212]
[1754612744445,2.697,3903.0,3901.8,0.54464212]
[1754612744762,0.45884,3903.1,3902.0,0.55]
[1754612745082,0.4172,3903.2,3902.2,0.55]
[1754612745592,0.128,3902.3,3902.2,0.55]
[1754612745744,0.088,3902.3,3901.9,0.55]
[1754612745947,0.088,3902.3,3902.1,0.04]
[1754612746148,2.697,3903.5,3902.1,0.04]
[1754612746450,0.128,3902.2,3902.1,0.04]
[1754612748266,1.03473201,3903.1,3902.1,0.04]
[1754612748467,0.128,3902.2,3902.1,0.4787]
[1754612748783,0.128,3902.4,3902.2,0.55]
[1754612748953,0.002,3903.0,3902.1,0.04]
[1754612749153,0.128,3902.2,3902.1,0.04]
[1754612749682,0.128,3902.2,3902.1,2.9171]
[1754612749985,0.128,3902.2,3902.1,0.59]
[1754612750285,0.128,3902.2,3901.6,0.128]
[1754612750448,2.699,3903.0,3900.8,0.4387]
[1754612750648,0.128,3901.2,3900.9,4.163]
[1754612750859,0.128,3901.2,3901.1,1e-08]
[1754612751491,0.128,3901.2,3900.7,1e-08]
[1754612751673,0.128,3900.8,3900.7,1e-08]
[1754612753152,0.128,3900.8,3900.7,0.43870001]
[1754612753577,2.697,3902.8,3900.8,0.55]
[1754612753784,2.697,3902.8,3901.0,3.0]
[1754612753986,0.04,3902.9,3901.1,0.9887]
[1754612754190,0.128,3901.4,3901.1,0.9887]
[1754612754479,0.04,3902.9,3901.3,3.55]
[1754612754682,0.128,3901.7,3901.3,3.55]
[1754612754912,0.04,3902.9,3901.5,0.55]
[1754612755185,0.128,3902.1,3901.6,0.4387]
[1754612755386,0.128,3902.1,3901.8,0.55]
[1754612755577,0.128,3902.1,3902.0,3.55]
[1754612755773,0.128,3902.1,3902.0,3.0]
[1754612755966,0.128,3902.1,3901.7,0.55]
[1754612756167,0.128,3902.1,3901.9,3.0]
[1754612756554,0.128,3902.0,3901.9,3.0]
[1754612756870,0.04,3902.9,3902.0,0.55]
[1754612757184,0.128,3902.3,3902.0,0.55]
[1754612757382,0.128,3902.3,3902.2,3.55]
[1754612757587,0.128,3902.3,3902.2,0.55]
[1754612757886,0.128,3902.3,3902.2,0.3761]
[1754612758259,0.128,3902.3,3902.2,2.2645]
[1754612758682,0.128,3902.3,3902.0,0.55]
[1754612758890,0.04,3902.9,3902.2,3.0]
[1754612759088,0.128,3902.3,3902.2,3.0]
[1754612760415,0.128,3902.3,3901.2,0.3778]
[1754612760622,0.04,3902.9,3901.4,4.152]
[1754612761025,2.697,3902.8,3901.4,4.152]
[1754612761318,0.128,3901.5,3901.4,4.152]
[1754612761534,0.128,3901.5,3901.4,7.152]
[1754612761887,0.128,3901.5,3901.4,9.4089]
[1754612762512,0.34061,3902.9,3901.5,3.0]
[1754612762690,0.04,3902.9,3901.5,3.0]
[1754612762892,0.128,3901.6,3901.5,3.0]
[1754612763319,0.128,3901.6,3901.5,0.3686]
[1754612763490,0.128,3901.6,3901.5,7.15]
[1754612763912,0.128,3901.6,3901.5,9.4035]
[1754612764087,0.128,3901.9,3901.6,3.55]
[1754612764287,0.128,3901.9,3901.7,2.2499]
[1754612764594,0.128,3902.2,3901.8,0.55]
[1754612764903,0.128,3902.3,3902.0,3.55]
[1754612765105,0.128,3902.3,3902.2,3.0]
[1754612765824,0.128,3902.3,3902.2,4.148]
[1754612766603,0.128,3902.3,3902.0,3.0]
[1754612766932,0.04,3902.9,3902.0,3.0]
[1754612767140,0.128,3902.1,3902.0,3.0]
[1754612767336,0.29145,3902.8,3902.0,3.0]
[1754612767539,0.128,3902.1,3902.0,3.0]
[1754612767838,0.128,3902.1,3902.0,5.3271]
[1754612768040,0.128,3902.1,3902.0,3.0]
[1754612768211,0.04,3902.9,3902.0,3.0]
[1754612768212,0.04,3902.9,3902.1,0.55]
[1754612768420,0.04,3903.9,3903.0,3.55]
[1754612768755,0.128,3903.8,3903.2,3.55]
[1754612768916,0.04,3903.9,3903.5,0.128]
[1754612769104,0.04,3903.9,3903.7,3.0]
[1754612769300,0.04,3903.9,3903.8,7.156]
[1754612769720,0.168,3903.9,3903.8,7.156]
[1754612770623,0.168,3903.9,3903.8,3.0]
[1754612770936,0.168,3903.9,3902.7,4.154]
[1754612771136,0.128,3903.7,3902.9,3.0]
[1754612771351,0.04,3903.9,3902.8,4.154]
[1754612771703,0.128,3902.9,3902.4,0.0723]
[1754612771905,0.40459,3903.9,3902.6,3.0]
[1754612772103,0.04,3903.9,3902.8,3.0]
[1754612772530,0.128,3902.9,3902.7,4.154]
[1754612772939,0.128,3902.9,3902.6,4.155]
[1754612773158,0.128,3902.1,3902.0,3.17]
[1754612773312,0.128,3902.1,3902.0,4.153]
[1754612774746,0.128,3902.1,3901.1,0.04]
[1754612774960,0.128,3901.8,3901.1,0.04]
[1754612775473,3.375,3901.8,3901.1,0.04]
[1754612775647,3.1625,3901.8,3901.1,0.04]
[1754612775836,0.4655,3901.8,3901.1,0.04]
[1754612776036,0.128,3901.8,3901.1,0.04]
[1754612778276,0.10237047,3901.8,3901.1,0.04]
[1754612779365,0.12955555,3902.3,3901.1,0.04]
[1754612779558,0.128,3901.8,3901.1,0.04]
[1754612781486,0.128,3901.8,3901.7,0.0486]
[1754612781686,0.128,3901.8,3901.7,1.9516]
[1754612781895,0.128,3901.8,3901.7,4.9516]
[1754612782193,0.1056,3901.8,3901.7,5.14676]
[1754612782356,0.128,3902.3,3901.7,5.14676]
[1754612782700,0.128,3902.3,3901.8,1.903]
[1754612782869,0.09852267,3902.6,3902.0,3.0]
[1754612783185,0.128,3902.1,3901.7,3.001]
[1754612783365,0.128,3901.8,3901.7,3.001]
[1754612783682,0.128,3901.8,3901.7,0.001]
[1754612787286,0.128,3901.8,3901.7,1.904]
[1754612787663,0.128,3901.8,3901.7,4.904]
[1754612788493,0.09852267,3902.6,3901.7,4.904]
[1754612788838,0.128,3902.1,3901.8,0.55]
[1754612788961,0.128,3902.1,3901.7,3.001]
[1754612789165,0.09852267,3902.6,3901.9,3.0]
[1754612789364,0.128,3902.0,3901.9,3.0]
[1754612789570,0.128,3902.0,3901.9,4.903]
[1754612791765,0.128,3902.0,3901.9,3.0]
[1754612792395,0.128,3902.0,3901.9,4.903]
[1754612792645,0.09852267,3902.6,3902.0,0.55]
[1754612792936,0.002,3904.4,3903.0,0.55]
[1754612793086,0.002,3904.4,3903.2,0.55]
[1754612793437,0.153,3906.1,3903.2,3.55]
[1754612793741,0.14488965,3906.1,3903.2,3.55]
[1754612793891,0.28518211,3906.7,3903.2,3.55]
[1754612794413,0.28518211,3906.7,3903.3,1.0595]
[1754612794597,0.19195021,3905.7,3903.3,1.0595]
[1754612794922,0.19195021,3905.7,3903.3,7.2135]
[1754612795129,0.13089254,3906.2,3904.0,0.1]
[1754612795295,0.19023098,3906.3,3904.3,0.55]
[1754612795490,0.16817343,3906.9,3904.4,2.3456]
[1754612795731,0.36204215,3906.9,3904.6,0.55]
[1754612795888,0.23386872,3906.9,3904.9,0.55]
[1754612796095,8.69107727,3908.0,3905.1,0.55]
[1754612796296,0.73461233,3908.4,3905.2,0.23805605]
[1754612796496,0.48816123,3908.3,3905.4,0.55]
[1754612796695,14.5,3908.2,3905.6,3.55]
[1754612796926,0.18850715,3908.2,3905.8,3.0]
[1754612797126,0.08003617,3908.1,3906.0,2.8343282]
[1754612797332,0.08003617,3908.0,3906.1,2.3398]
[1754612797495,0.08003617,3907.9,3906.2,0.4407]
[1754612797700,0.08003617,3907.8,3906.3,1.903]
[1754612797896,14.5,3908.4,3906.4,0.4426]
[1754612797897,0.08003617,3907.7,3906.4,0.4426]
[1754612798203,0.08003617,3907.6,3906.5,6.054]
[1754612798406,0.08003617,3907.5,3906.5,3.83342656]
[1754612798604,0.08003617,3907.4,3906.5,3.83342656]
[1754612798859,0.04,3908.9,3906.5,3.83342656]
[1754612799016,0.08001805,3908.8,3906.5,3.83342656]
[1754612799217,1.53284,3908.9,3906.6,3.0]
[1754612799420,1.53284,3908.9,3906.9,0.55]
[1754612799604,1.53284,3908.9,3907.2,0.55]
[1754612799605,0.04,3908.9,3907.2,0.55]
[1754612799805,0.04,3908.9,3907.0,6.251]
[1754612799806,0.04,3908.9,3907.4,3.0]
[1754612799991,0.4284,3908.9,3907.4,2.02264186]
[1754612800211,0.128,3907.5,3907.3,4.149]
[1754612800411,0.128,3907.4,3907.3,2.59902254]
[1754612800633,0.128,3907.4,3907.3,4.50202254]
[1754612801011,0.128,3907.4,3907.3,4.57852254]
[1754612801416,0.04783641,3908.8,3907.3,4.57852254]
[1754612801716,0.128,3907.4,3907.3,1.9795]
[1754612801915,0.128,3907.4,3907.3,6.1285]
[1754612802146,0.128,3907.4,3907.3,9.1285]
[1754612802321,0.04783641,3908.8,3907.4,3.0]
[1754612802322,0.01981102,3908.8,3907.4,3.0]
[1754612802649,0.01981102,3908.8,3907.5,0.55]
[1754612802949,0.128,3908.1,3907.5,0.6809]
[1754612803745,0.128,3908.1,3907.6,0.14247471]
[1754612803950,0.128,3908.1,3907.7,0.14247471]
[1754612804162,0.128,3908.1,3907.8,0.14247471]
[1754612804163,0.99460464,3908.1,3907.8,0.14247471]
[1754612804330,0.55,3908.4,3907.9,0.14247471]
[1754612804530,0.55,3908.4,3906.1,0.3084]
[1754612804531,0.55,3908.2,3906.1,0.3084]
[1754612804836,0.128,3906.2,3906.1,0.04]
[1754612805034,0.128,3906.2,3906.1,1.9903]
[1754612805238,1.06988977,3908.3,3906.1,1.9903]
[1754612805540,0.128,3906.3,3906.2,0.0087]
[1754612805736,0.128,3906.3,3906.2,3.0087]
[1754612805928,0.3776,3908.2,3906.2,3.0087]
[1754612805929,0.3776,3908.2,3907.1,0.04]
[1754612806126,0.128,3907.2,3907.1,0.04]
[1754612806541,0.5056,3907.2,3907.1,0.04]
[1754612806857,0.128,3907.2,3907.1,0.04]
[1754612807152,0.5056,3907.2,3907.1,0.04]
[1754612807353,0.128,3907.2,3907.1,0.04]
[1754612808716,0.19499263,3909.0,3907.1,2.1819]
[1754612808946,0.3776,3909.4,3907.3,0.1]
[1754612809158,1.74,3909.7,3907.4,1.9445]
[1754612809466,0.19572511,3909.7,3908.0,0.1]
[1754612809619,0.04,3909.9,3908.2,3.0]
[1754612809819,0.04,3909.9,3908.3,1.947]
[1754612810219,0.04,3909.9,3908.5,3.0]
[1754612810649,0.04,3909.9,3908.6,2.0065]
[1754612810849,0.04,3909.9,3908.7,3.0]
[1754612811041,0.768247,3909.8,3908.7,3.032]
[1754612811239,0.768247,3909.8,3908.7,0.36797277]
[1754612811439,0.768247,3909.8,3908.8,1.9431]
[1754612812255,0.67307405,3909.8,3907.9,0.1]
[1754612812456,0.55,3908.6,3908.0,4.164]
[1754612812657,0.55,3909.6,3908.1,4.166]
[1754612812957,0.55,3909.4,3908.2,4.165]
[1754612813156,1.8268,3909.5,3907.1,0.04]
[1754612813157,0.128,3907.6,3907.1,0.04]
[1754612813362,0.128,3907.6,3907.2,2.48797914]
[1754612813562,0.128,3907.6,3907.1,3.0059]
[1754612813868,0.55,3908.7,3907.3,4.166]
[1754612814225,0.128,3907.4,3907.3,2.29384789]
[1754612814536,1.76063,3908.9,3907.3,4.24314789]
[1754612814727,0.128,3908.0,3907.4,1.9431]
[1754612814928,0.176063,3908.8,3907.4,1.9431]
[1754612815152,1.8268,3910.1,3907.6,3.0]
[1754612815347,0.52707373,3910.7,3907.7,2.1810331]
[1754612815550,0.673074,3909.7,3907.8,0.04487634]
[1754612815844,0.128,3908.9,3908.4,0.128]
[1754612816045,0.168,3908.9,3908.5,6.40367634]
[1754612816276,0.168,3908.9,3908.6,2.1915]
[1754612816432,0.04,3908.9,3908.7,0.14208781]
[1754612816639,0.04,3908.9,3908.8,2.33198781]
[1754612817052,0.04,3908.9,3908.8,2.45998781]
[1754612817476,0.63324232,3909.7,3908.8,2.45998781]
[1754612817645,0.63324232,3909.7,3908.9,0.14208781]
[1754612817839,0.63324232,3909.7,3909.1,0.128]
[1754612818173,0.63324232,3909.7,3909.3,3.0]
[1754612818378,2.55793727,3909.4,3909.3,3.0]
[1754612818691,2.55793727,3909.4,3909.3,3.14205224]
[1754612819169,2.55793727,3909.4,3909.3,5.2868]
[1754612819755,3.06298615,3909.7,3909.3,2.2868]
[1754612819955,2.55780642,3909.6,3909.5,3.0]
[1754612820185,2.55780642,3909.6,3909.5,0.277]
[1754612820382,2.55806814,3909.2,3909.1,0.04]
[1754612820542,2.55806814,3909.2,3909.1,7.197]
[1754612820748,2.55852628,3908.5,3908.4,1.9431]
[1754612821078,3.11134219,3908.5,3908.4,6.1011]
[1754612821238,0.55281591,3908.5,3907.6,4.90469484]
[1754612821576,2.55898459,3907.8,3907.7,10.301]
[1754612821785,2.55905008,3907.7,3905.6,10.14889773]
[1754612821943,0.55281591,3907.6,3906.8,6.143]
[1754612822143,2.55938975,3907.2,3906.9,4.157]
[1754612822346,0.55281591,3907.1,3906.9,4.1546]
[1754612822539,12.53231867,3907.0,3906.8,6.143]
[1754612822752,0.55288604,3906.9,3906.8,6.143]
[1754612822954,3.11246012,3906.9,3906.8,10.3]
[1754612823259,3.11246012,3906.9,3906.8,6.3226]
[1754612823921,2.31803094,3906.9,3905.6,1.9431]
[1754612824057,0.55,3906.7,3905.7,4.157]
[1754612824254,2.56029494,3905.8,3905.7,4.157]
[1754612824454,2.55977064,3906.6,3905.1,6.143]
[1754612824766,2.56062274,3905.3,3905.2,4.157]
[1754612824966,2.56075388,3905.1,3905.0,1.9431]
[1754612825162,2.56088504,3904.9,3904.8,6.143]
[1754612825365,2.56088504,3904.9,3904.8,10.299]
[1754612825672,2.56081946,3905.0,3904.9,3.0]
[1754612825872,2.56016349,3906.1,3904.9,9.4729]
[1754612826066,2.56075388,3905.1,3905.0,0.3698]
[1754612826266,2.5610818,3904.6,3904.5,3.45983505]
[1754612826566,2.56134419,3904.2,3904.0,6.153]
[1754612826885,2.56134419,3904.2,3903.6,1.9431]
[1754612827086,2.56134419,3904.2,3904.1,4.197]
[1754612827290,0.55,3905.2,3904.2,3.0]
[1754612827291,2.56127859,3904.3,3904.2,3.0]
[1754612827463,2.56134419,3904.2,3904.1,0.04]
[1754612827662,3.11134419,3904.2,3904.1,7.197]
[1754612827877,3.11134419,3904.2,3904.1,4.197]
[1754612828481,3.11134419,3904.2,3904.1,0.04]
[1754612828880,3.23934419,3904.2,3904.1,0.04]
[1754612829687,2.56186913,3903.4,3903.3,6.143]
[1754612829865,2.5620004,3903.2,3903.1,0.168]
[1754612830076,3.1120004,3903.2,3903.1,4.193]
[1754612830304,3.1120004,3903.2,3903.1,7.193]
[1754612830499,3.1120004,3903.2,3903.1,4.193]
[1754612830698,3.1120004,3903.2,3903.1,0.04]
[1754612830927,5.51898735,3903.2,3903.1,0.04]
[1754612831110,2.56232864,3902.7,3902.0,0.2712]
[1754612831428,3.11265696,3902.2,3902.0,4.153]
[1754612831597,2.56245546,3902.6,3902.0,4.153]
[1754612831797,2.56245546,3902.6,3902.1,0.1157]
[1754612831798,2.56265696,3902.2,3902.1,0.1157]
[1754612831999,3.11265696,3902.2,3902.1,0.04]
[1754612832933,4.93945696,3902.2,3902.1,0.04]
[1754612833316,0.55,3901.9,3901.7,0.001]
[1754612833519,2.56282809,3902.0,3901.7,0.001]
[1754612833520,3.11291967,3901.8,3901.7,0.001]
[1754612834342,3.24091967,3901.8,3901.7,0.001]
[1754612834506,0.678,3901.8,3901.7,0.001]
[1754612834838,0.55,3901.8,3901.7,0.0317]
[1754612835141,0.55,3901.8,3901.7,0.001]
[1754612835142,3.21554767,3901.8,3901.7,0.001]
[1754612835525,3.34354767,3901.8,3901.7,0.001]
[1754612835707,5.22624767,3901.8,3901.7,0.001]
[1754612836017,6.00515531,3901.8,3901.7,1e-08]
[1754612836222,6.39165531,3901.8,3901.7,1e-08]
[1754612836424,3.34354767,3901.8,3901.7,1e-08]
[1754612836894,2.79354767,3901.8,3901.7,1e-08]
[1754612837093,0.102628,3901.8,3901.7,1e-08]
[1754612837336,2.66554767,3901.8,3901.7,1e-08]
[1754612837500,3.21554767,3901.8,3901.7,1e-08]
[1754612837718,6.1905828,3901.8,3901.7,1e-08]
[1754612837911,3.11331385,3901.2,3901.1,1e-08]
[1754612838103,3.24131385,3901.2,3901.1,1e-08]
[1754612838362,3.11344527,3901.0,3900.9,1e-08]
[1754612838711,5.51064527,3901.0,3900.9,1e-08]
[1754612839211,0.55,3900.5,3900.1,1e-08]
[1754612839405,0.55,3900.1,3899.9,1e-08]
[1754612839655,3.11436557,3899.6,3899.5,1e-08]
[1754612840556,3.11436557,3899.6,3899.1,1e-08]
[1754612840557,3.11462864,3899.2,3899.1,1e-08]
[1754612840761,3.11528654,3898.2,3897.1,0.168]
[1754612840960,7.40728654,3898.2,3898.1,1e-08]
[1754612841257,9.73608654,3898.2,3898.1,1e-08]
[1754612841409,10.99043462,3898.2,3898.1,1e-08]
[1754612841615,10.73333462,3898.2,3898.1,1e-08]
[1754612841970,10.96718227,3898.2,3898.1,1e-08]
[1754612842416,6.12323462,3898.2,3898.1,1e-08]
[1754612842760,7.41028654,3898.2,3898.1,1e-08]
[1754612842940,9.73908654,3898.2,3898.1,1e-08]
[1754612843261,0.55,3897.1,3896.2,0.1596]
[1754612843461,3.11660335,3896.2,3896.1,0.04]
[1754612843751,3.11660335,3896.2,3895.4,0.001]
[1754612843976,3.11726227,3895.2,3895.1,1e-08]
[1754612844112,7.42326227,3895.2,3895.1,1e-08]
[1754612844313,20.90000277,3895.2,3895.1,1e-08]
[1754612844540,0.55,3894.2,3894.1,0.04]
[1754612844769,3.11766362,3894.6,3894.2,0.0739]
[1754612844914,3.11785558,3894.3,3894.2,0.0739]
[1754612845119,3.11792152,3894.2,3894.1,0.04]
[1754612845356,0.99904277,3895.2,3894.2,1.814]
[1754612845521,0.55,3894.6,3894.2,1.9994]
[1754612845727,0.55,3894.3,3894.1,0.168]
[1754612845965,2.56792152,3894.2,3894.1,0.168]
[1754612846112,2.56792152,3894.2,3891.1,0.041]
[1754612846113,2.56924104,3892.2,3891.5,0.13489822]
[1754612846434,0.1288,3893.2,3891.9,0.1265]
[1754612846620,0.1288,3893.2,3891.8,1.814]
[1754612846621,0.6788,3892.8,3892.3,0.1288]
[1754612846820,0.6788,3892.8,3892.1,0.0437]
[1754612846821,2.56924104,3892.2,3892.1,0.0437]
[1754612847012,0.55,3892.2,3892.1,0.0437]
[1754612847210,0.55,3892.6,3892.1,1.8577]
[1754612847425,0.55,3893.6,3892.2,1.814]
[1754612847745,0.1288,3893.7,3892.3,0.029]
[1754612848054,0.128,3894.3,3893.5,0.1288]
[1754612848347,1.31617387,3896.0,3893.7,3.0]
[1754612848552,2.56695911,3895.7,3893.8,2.0179]
[1754612848720,0.04,3894.9,3893.9,3.92655825]
[1754612848919,0.0344,3894.9,3894.0,1.90298053]
[1754612849152,0.04,3895.9,3894.1,0.28295388]
[1754612849352,0.04,3895.9,3894.2,1.8772]
[1754612849658,0.770905,3895.8,3894.4,3.0]
[1754612849858,2.56686688,3895.8,3894.5,1.9051]
[1754612850057,2.56694058,3895.7,3894.6,0.0903]
[1754612850297,0.77085,3895.8,3894.7,1.83967591]
[1754612850498,1.04332826,3896.9,3894.7,1.814]
[1754612850663,0.770762,3896.3,3894.8,0.272741]
[1754612850980,0.770762,3896.3,3895.0,3.0]
[1754612851182,1.04332826,3896.9,3895.1,1.814]
[1754612851380,0.770771,3896.3,3895.1,1.814]
[1754612851589,1.04332826,3896.9,3895.1,1.814]
[1754612851798,0.55,3896.8,3895.1,1.814]
[1754612851967,2.56654072,3896.3,3895.2,4.5206]
[1754612852166,2.56633473,3896.7,3895.2,4.5206]
[1754612852486,0.770727,3896.8,3895.3,1.83967196]
[1754612852783,1.04332826,3896.9,3895.4,0.6360272]
[1754612852959,1.04332826,3896.9,3895.5,1.814]
[1754612853159,0.04,3896.9,3895.6,0.02566998]
[1754612853409,0.04,3896.9,3895.7,2.06156972]
[1754612853894,0.04,3896.9,3896.1,3.0]
[1754612854093,0.04,3896.9,3896.3,3.0]
[1754612854461,0.04,3896.9,3896.4,1.814]
[1754612854805,0.04,3896.9,3896.6,3.0]
[1754612855004,0.55,3896.8,3896.6,3.0]
[1754612855167,0.55,3896.8,3896.3,4.226]
[1754612855367,3.11644209,3896.5,3896.4,3.0]
[1754612855567,0.55,3896.5,3896.4,3.0]
[1754612855768,0.55,3896.8,3896.4,4.814]
[1754612855994,0.55,3896.8,3896.6,3.0]
[1754612856751,0.04,3896.9,3896.7,1.814]
[1754612856899,0.04,3896.9,3896.8,1.814]
[1754612857236,0.04,3896.9,3896.8,2.3858]
[1754612858004,0.04,3896.9,3896.8,2.41146208]
[1754612858205,0.04,3896.9,3896.8,11.5458]
[1754612858629,0.002,3898.1,3896.9,3.0]
[1754612858833,0.002,3898.1,3897.8,0.128]
[1754612859134,0.002,3898.1,3897.9,3.0]
[1754612859298,0.002,3898.1,3898.0,0.7351]
[1754612859494,0.002,3898.1,3898.0,5.5491]
[1754612859699,0.002,3898.1,3898.0,5.6771]
[1754612861333,2.56735235,3898.1,3898.0,3.128]
[1754612861639,0.002,3898.1,3898.0,7.347]
[1754612861840,2.56735235,3898.1,3898.0,7.347]
[1754612862041,3.11735235,3898.1,3898.0,7.347]
[1754612862334,3.11735235,3898.1,3898.0,4.347]
[1754612862540,5.00005235,3898.1,3898.0,4.347]
[1754612862723,3.11735235,3898.1,3898.0,4.347]
[1754612863233,0.002,3898.1,3898.0,6.5957]
[1754612863535,3.11735235,3898.1,3898.0,4.347]
[1754612863929,0.002,3898.1,3898.0,4.347]
[1754612864346,0.002,3898.1,3898.0,6.215]
[1754612864547,0.002,3898.1,3898.0,9.215]
[1754612865166,0.002,3898.1,3898.0,4.996]
[1754612865328,0.002,3898.1,3898.0,9.7116]
[1754612865673,0.002,3898.1,3898.0,4.8436]
[1754612866181,0.002,3898.1,3898.0,4.344]
[1754612866531,3.11735235,3898.1,3898.0,4.344]
[1754612866832,0.002,3898.1,3898.0,4.344]
[1754612867455,3.11735235,3898.1,3898.0,4.344]
[1754612867930,5.03635235,3898.1,3898.0,4.344]
[1754612868331,5.03635235,3898.1,3896.7,0.0183]
[1754612868534,2.56607443,3897.1,3896.8,4.211]
[1754612868877,0.55,3897.6,3896.8,4.211]
[1754612869170,0.55,3897.6,3897.0,0.128]
[1754612869342,2.56594475,3897.3,3896.8,4.211]
[1754612869527,2.56546061,3898.0,3896.9,1.91186142]
[1754612869733,2.56562105,3897.7,3896.9,4.8862]
[1754612869933,2.56562105,3897.7,3897.0,0.95183]
[1754612870255,0.002,3898.1,3897.6,0.128]
[1754612870433,2.56554531,3897.9,3897.7,4.209]
[1754612870641,0.002,3898.1,3898.0,0.128]
[1754612870982,0.002,3898.1,3897.8,1.996]
[1754612871134,0.002,3898.1,3897.8,5.2889]
[1754612871441,0.002,3898.1,3898.0,0.128]
[1754612871863,0.002,3898.1,3898.0,2.02165418]
[1754612872181,0.002,3898.1,3898.0,1.996]
[1754612872381,0.002,3898.1,3898.0,5.95859]
[1754612872581,0.002,3898.1,3898.0,4.09059]
[1754612873255,0.002,3898.1,3898.0,5.95859]
[1754612873462,0.002,3898.1,3898.0,4.09059]
[1754612874207,0.002,3898.1,3898.0,1.09059]
[1754612874394,0.002,3898.1,3898.0,2.95859]
[1754612874908,0.002,3898.1,3898.0,1.09059]
[1754612875073,0.002,3898.1,3898.0,4.329]
[1754612875570,2.56735235,3898.1,3898.0,4.329]
[1754612875784,0.002,3898.1,3898.0,4.329]
[1754612876803,0.002,3898.1,3898.0,4.33]
[1754612877309,0.002,3898.1,3898.0,4.3757]
[1754612877484,0.002,3898.1,3898.0,6.70702418]
[1754612877802,0.002,3898.1,3898.0,6.68137]
[1754612878007,0.002,3898.1,3898.0,9.68137]
[1754612878980,0.002,3898.1,3898.0,4.324]
[1754612880300,0.002,3898.1,3898.0,9.2064]
[1754612880621,0.81216,3898.9,3898.1,3.0]
[1754612880780,0.81216,3898.9,3898.7,10.14889773]
[1754612880986,0.81216,3898.9,3898.8,10.20988977]
[1754612881535,0.81216,3898.9,3898.8,5.21388977]
[1754612881831,0.81216,3898.9,3898.8,4.199]
[1754612882382,0.81216,3898.9,3898.8,9.067]
[1754612883116,0.042,3898.9,3898.8,7.199]
[1754612883521,0.042,3898.9,3898.8,3.0]
[1754612883830,0.042,3898.9,3898.8,7.197]
[1754612883983,0.042,3898.9,3898.8,3.7197]
[1754612884181,0.042,3898.9,3898.8,7.198]
[1754612884694,0.042,3898.9,3898.8,9.066]
[1754612885096,0.042,3898.9,3898.8,7.198]
[1754612885421,0.042,3898.9,3898.8,3.0]
[1754612885608,0.042,3898.9,3898.8,7.199]
[1754612885807,0.042,3898.9,3898.8,3.0]
[1754612886119,2.56489176,3898.8,3898.3,3.0]
[1754612886416,1.919,3898.7,3898.4,4.199]
[1754612886592,2.60682959,3898.9,3898.4,4.199]
[1754612886833,4.48401559,3898.7,3898.4,4.199]
[1754612887034,4.48403264,3898.6,3898.4,4.199]
[1754612887232,1.919,3898.5,3898.4,4.199]
[1754612887435,2.60683877,3898.9,3898.3,3.0]
[1754612887625,2.56489791,3898.8,3898.4,4.197]
[1754612887826,1.919,3898.7,3898.4,4.197]
[1754612888524,0.042,3898.9,3898.4,5.5324]
[1754612888724,0.042,3898.9,3898.5,3.0]